[Event "Betsys MČR v online bleskovém šachu 2021"]
[Site "Chess.com"]
[Date "2021.04.17"]
[Round "5"]
[White "Tretrik"]
[Black "Svandik49"]
[Result "1-0"]
[WhiteElo "2161"]
[BlackElo "2259"]
[TimeControl "180+1"]
[EndTime "9:47:23 PDT"]
[Termination "Uživatel Tretrik zvítězil matem"]

1. e4 {[%clk 0:03:00.9]} 1... c5 {[%clk 0:02:59.9]} 2. Nf3 {[%clk 0:03:00.4]}
2... e6 {[%clk 0:03:00.4]} 3. d4 {[%clk 0:03:00]} 3... cxd4 {[%clk 0:03:01.3]}
4. Nxd4 {[%clk 0:03:00.6]} 4... Nc6 {[%clk 0:03:01.9]} 5. Nc3 {[%clk 0:02:58.7]}
5... Qc7 {[%clk 0:03:02.2]} 6. Be3 {[%clk 0:02:58]} 6... a6 {[%clk 0:03:02.2]}
7. a3 {[%clk 0:02:58.5]} 7... Nf6 {[%clk 0:03:00.4]} 8. f4 {[%clk 0:02:58.3]}
8... d6 {[%clk 0:02:54]} 9. Qf3 {[%clk 0:02:57.7]} 9... Be7 {[%clk 0:02:52.7]}
10. Bd3 {[%clk 0:02:55.9]} 10... Rb8 {[%clk 0:02:50.6]} 11. g4 {[%clk
0:02:47.9]} 11... O-O {[%clk 0:02:45.3]} 12. g5 {[%clk 0:02:45.6]} 12... Nd7
{[%clk 0:02:44.7]} 13. h4 {[%clk 0:02:38.2]} 13... Nxd4 {[%clk 0:02:13]} 14.
Bxd4 {[%clk 0:02:38.2]} 14... e5 {[%clk 0:02:13.3]} 15. Nd5 {[%clk 0:02:32.1]}
15... Qd8 {[%clk 0:02:13]} 16. Bc3 {[%clk 0:02:11.9]} 16... exf4 {[%clk
0:02:09.5]} 17. Qxf4 {[%clk 0:02:10.9]} 17... Ne5 {[%clk 0:02:06.8]} 18. O-O-O
{[%clk 0:02:00.2]} 18... Be6 {[%clk 0:02:04.3]} 19. Be2 {[%clk 0:01:43.4]} 19...
Bxd5 {[%clk 0:01:46.5]} 20. Rxd5 {[%clk 0:01:39]} 20... Qb6 {[%clk 0:01:43.4]}
21. h5 {[%clk 0:01:17]} 21... Rbc8 {[%clk 0:01:36.9]} 22. Bd4 {[%clk 0:00:30.3]}
22... Qc7 {[%clk 0:01:31.6]} 23. c3 {[%clk 0:00:29.5]} 23... Nc6 {[%clk
0:01:25.6]} 24. Be3 {[%clk 0:00:19.5]} 24... Rfe8 {[%clk 0:01:02.8]} 25. Bg4
{[%clk 0:00:19.1]} 25... Rcd8 {[%clk 0:00:57.7]} 26. g6 {[%clk 0:00:18.1]} 26...
Rf8 {[%clk 0:00:20.4]} 27. h6 {[%clk 0:00:14.1]} 27... fxg6 {[%clk 0:00:06.2]}
28. Be6+ {[%clk 0:00:13.8]} 28... Kh8 {[%clk 0:00:05.6]} 29. hxg7+ {[%clk
0:00:13.5]} 29... Kxg7 {[%clk 0:00:06.5]} 30. Rxh7+ {[%clk 0:00:11.1]} 30...
Kxh7 {[%clk 0:00:03.8]} 31. Qh6# {[%clk 0:00:11.6]} 1-0

[Event "Betsys MČR v online bleskovém šachu 2021"]
[Site "Chess.com"]
[Date "2021.04.17"]
[Round "5"]
[White "JJ95"]
[Black "ffbp3q"]
[Result "1-0"]
[WhiteElo "2021"]
[BlackElo "2356"]
[TimeControl "180+1"]
[EndTime "9:47:23 PDT"]
[Termination "Uživatel JJ95 zvítězil po vzdání soupeře"]

1. e4 {[%clk 0:03:00.9]} 1... c5 {[%clk 0:02:59.2]} 2. c3 {[%clk 0:03:00.1]}
2... d6 {[%clk 0:02:58.4]} 3. d4 {[%clk 0:03:00.1]} 3... Nf6 {[%clk 0:02:57.6]}
4. Bd3 {[%clk 0:02:51.5]} 4... g6 {[%clk 0:02:57.1]} 5. Nf3 {[%clk 0:02:51]}
5... Bg7 {[%clk 0:02:56.9]} 6. O-O {[%clk 0:02:50.2]} 6... Bg4 {[%clk
0:02:55.5]} 7. h3 {[%clk 0:02:48.4]} 7... Bxf3 {[%clk 0:02:54.7]} 8. Qxf3 {[%clk
0:02:49.3]} 8... cxd4 {[%clk 0:02:47]} 9. cxd4 {[%clk 0:02:45.2]} 9... Nc6
{[%clk 0:02:44.7]} 10. Be3 {[%clk 0:02:25]} 10... O-O {[%clk 0:02:39.8]} 11. Nc3
{[%clk 0:02:23.3]} 11... Nd7 {[%clk 0:02:32.2]} 12. Ne2 {[%clk 0:02:13.4]} 12...
Rc8 {[%clk 0:02:22.1]} 13. a3 {[%clk 0:02:09.9]} 13... e5 {[%clk 0:02:12.9]} 14.
d5 {[%clk 0:02:08.1]} 14... Nd4 {[%clk 0:02:08.6]} 15. Nxd4 {[%clk 0:02:03.7]}
15... exd4 {[%clk 0:02:08.7]} 16. Bd2 {[%clk 0:01:56]} 16... Nc5 {[%clk
0:01:55.6]} 17. Rac1 {[%clk 0:01:47.1]} 17... Qb6 {[%clk 0:01:49.7]} 18. b4
{[%clk 0:01:27]} 18... Na4 {[%clk 0:01:27.8]} 19. Qg4 {[%clk 0:01:08.1]} 19...
Nc3 {[%clk 0:01:19.5]} 20. h4 {[%clk 0:01:03.6]} 20... h5 {[%clk 0:01:13]} 21.
Qh3 {[%clk 0:00:51.8]} 21... a5 {[%clk 0:01:04.2]} 22. b5 {[%clk 0:00:47.1]}
22... a4 {[%clk 0:00:56]} 23. g4 {[%clk 0:00:43.1]} 23... hxg4 {[%clk
0:00:44.2]} 24. Qxg4 {[%clk 0:00:44]} 24... Qd8 {[%clk 0:00:31.4]} 25. Bg5
{[%clk 0:00:39.5]} 25... Qe8 {[%clk 0:00:23.1]} 26. h5 {[%clk 0:00:35.6]} 26...
gxh5 {[%clk 0:00:13.9]} 27. Qxh5 {[%clk 0:00:35.8]} 27... f6 {[%clk 0:00:10.5]}
28. Qxe8 {[%clk 0:00:29.6]} 28... Rfxe8 {[%clk 0:00:10.4]} 29. Bf4 {[%clk
0:00:26.9]} 29... Nxe4 {[%clk 0:00:06]} 30. Rxc8 {[%clk 0:00:26.3]} 30... Rxc8
{[%clk 0:00:05.4]} 31. Bxe4 {[%clk 0:00:26.6]} 31... Rc3 {[%clk 0:00:05.3]} 32.
Bxd6 {[%clk 0:00:26]} 32... Kf7 {[%clk 0:00:04.5]} 33. Bb4 {[%clk 0:00:25.6]}
33... Rb3 {[%clk 0:00:03.3]} 34. d6 {[%clk 0:00:25.2]} 34... Rb2 {[%clk
0:00:03.5]} 35. d7 {[%clk 0:00:22.5]} 1-0

[Event "Betsys MČR v online bleskovém šachu 2021"]
[Site "Chess.com"]
[Date "2021.04.17"]
[Round "5"]
[White "povrlak60"]
[Black "KatkaZ"]
[Result "1-0"]
[WhiteElo "1625"]
[BlackElo "1859"]
[TimeControl "180+1"]
[EndTime "9:47:23 PDT"]
[Termination "Uživatel povrlak60 zvítězil na čas"]

1. e4 {[%clk 0:03:00.9]} 1... c5 {[%clk 0:02:59.4]} 2. Nc3 {[%clk 0:02:59.5]}
2... e6 {[%clk 0:02:59.5]} 3. g3 {[%clk 0:02:59.3]} 3... Nc6 {[%clk 0:02:58.7]}
4. Bg2 {[%clk 0:02:58.9]} 4... g6 {[%clk 0:02:58.1]} 5. d3 {[%clk 0:02:58.7]}
5... Bg7 {[%clk 0:02:57.8]} 6. Nge2 {[%clk 0:02:58.4]} 6... Nge7 {[%clk
0:02:56]} 7. Be3 {[%clk 0:02:57.7]} 7... b6 {[%clk 0:02:55.1]} 8. O-O {[%clk
0:02:57.2]} 8... O-O {[%clk 0:02:54.4]} 9. f4 {[%clk 0:02:56.8]} 9... d6 {[%clk
0:02:53.1]} 10. Qd2 {[%clk 0:02:56.3]} 10... Bb7 {[%clk 0:02:42.3]} 11. g4
{[%clk 0:02:56]} 11... Nd4 {[%clk 0:02:41.1]} 12. Ng3 {[%clk 0:02:54.5]} 12...
f5 {[%clk 0:02:34.6]} 13. h3 {[%clk 0:02:48.9]} 13... a6 {[%clk 0:02:28.7]} 14.
Rae1 {[%clk 0:02:35]} 14... Qc7 {[%clk 0:02:17.5]} 15. Nd1 {[%clk 0:02:23.3]}
15... Rae8 {[%clk 0:02:11]} 16. c3 {[%clk 0:02:22.4]} 16... Ndc6 {[%clk
0:02:09]} 17. gxf5 {[%clk 0:02:15.3]} 17... exf5 {[%clk 0:02:08.2]} 18. Nf2
{[%clk 0:02:12.9]} 18... fxe4 {[%clk 0:02:05.4]} 19. Nfxe4 {[%clk 0:02:07.2]}
19... Nf5 {[%clk 0:01:49.2]} 20. Nxf5 {[%clk 0:02:05.4]} 20... Rxf5 {[%clk
0:01:44.2]} 21. Ng3 {[%clk 0:02:01.7]} 21... Rff8 {[%clk 0:01:42.6]} 22. Bd5+
{[%clk 0:01:54.4]} 22... Kh8 {[%clk 0:01:40.6]} 23. Be4 {[%clk 0:01:44.6]} 23...
Ne7 {[%clk 0:01:37.7]} 24. Bxb7 {[%clk 0:01:39.2]} 24... Qxb7 {[%clk 0:01:36.7]}
25. d4 {[%clk 0:01:23.5]} 25... c4 {[%clk 0:01:13.4]} 26. Rf2 {[%clk 0:01:01.9]}
26... Nd5 {[%clk 0:01:09.1]} 27. Rfe2 {[%clk 0:00:58.9]} 27... Nxe3 {[%clk
0:00:55.7]} 28. Rxe3 {[%clk 0:00:58.3]} 28... Qd7 {[%clk 0:00:41.2]} 29. Kh2
{[%clk 0:00:56.2]} 29... Rxe3 {[%clk 0:00:32.5]} 30. Qxe3 {[%clk 0:00:55.6]}
30... h5 {[%clk 0:00:28.7]} 31. Qe6 {[%clk 0:00:42.8]} 31... Qf7 {[%clk
0:00:05.4]} 32. Qxf7 {[%clk 0:00:35.2]} 32... Rxf7 {[%clk 0:00:04.5]} 33. Re8+
{[%clk 0:00:27]} 33... Kh7 {[%clk 0:00:03.2]} 34. Ne2 {[%clk 0:00:20]} 1-0

[Event "Betsys MČR v online bleskovém šachu 2021"]
[Site "Chess.com"]
[Date "2021.04.17"]
[Round "5"]
[White "VojtechPlat"]
[Black "karimaster100"]
[Result "1-0"]
[WhiteElo "2859"]
[BlackElo "2256"]
[TimeControl "180+1"]
[EndTime "9:47:24 PDT"]
[Termination "Uživatel VojtechPlat zvítězil na čas"]

1. d4 {[%clk 0:02:58.5]} 1... Nf6 {[%clk 0:02:59.3]} 2. Nf3 {[%clk 0:02:58.4]}
2... e6 {[%clk 0:02:59.4]} 3. e3 {[%clk 0:02:58.6]} 3... b6 {[%clk 0:02:59.4]}
4. Bd3 {[%clk 0:02:58.6]} 4... Bb7 {[%clk 0:02:59.8]} 5. Nbd2 {[%clk 0:02:58.7]}
5... c5 {[%clk 0:02:52.9]} 6. c3 {[%clk 0:02:58.4]} 6... Be7 {[%clk 0:02:52.9]}
7. O-O {[%clk 0:02:57.3]} 7... Nc6 {[%clk 0:02:49.9]} 8. Re1 {[%clk 0:02:57]}
8... cxd4 {[%clk 0:02:47.8]} 9. exd4 {[%clk 0:02:56.6]} 9... d5 {[%clk
0:02:33.4]} 10. Nf1 {[%clk 0:02:56.1]} 10... O-O {[%clk 0:02:30.8]} 11. Ng3
{[%clk 0:02:55.9]} 11... a6 {[%clk 0:02:24.2]} 12. a4 {[%clk 0:02:54.3]} 12...
Qc7 {[%clk 0:02:20]} 13. Bb1 {[%clk 0:02:52.1]} 13... b5 {[%clk 0:02:08.8]} 14.
Qd3 {[%clk 0:02:50]} 14... b4 {[%clk 0:01:50.1]} 15. h4 {[%clk 0:02:44.6]} 15...
bxc3 {[%clk 0:01:48.1]} 16. bxc3 {[%clk 0:02:44.4]} 16... Rac8 {[%clk
0:01:45.9]} 17. Bg5 {[%clk 0:02:43.5]} 17... g6 {[%clk 0:01:43.4]} 18. h5 {[%clk
0:02:33.3]} 18... Qd7 {[%clk 0:00:56]} 19. hxg6 {[%clk 0:02:31.7]} 19... hxg6
{[%clk 0:00:54.9]} 20. Bh6 {[%clk 0:02:03.7]} 20... Rfe8 {[%clk 0:00:49.9]} 21.
Ng5 {[%clk 0:02:03.5]} 21... Bf8 {[%clk 0:00:44.5]} 22. Bxf8 {[%clk 0:02:01.5]}
22... Rxf8 {[%clk 0:00:42.3]} 23. Qf3 {[%clk 0:01:50.4]} 23... Kg7 {[%clk
0:00:37.4]} 24. Bd3 {[%clk 0:01:29.1]} 24... Ne7 {[%clk 0:00:35.9]} 25. Bf1
{[%clk 0:01:19.7]} 25... Rc7 {[%clk 0:00:27.2]} 26. Rab1 {[%clk 0:01:18.5]}
26... Nf5 {[%clk 0:00:24]} 27. Nxf5+ {[%clk 0:01:14.3]} 27... exf5 {[%clk
0:00:23.8]} 28. Qg3 {[%clk 0:01:06.9]} 28... Rfc8 {[%clk 0:00:20.9]} 29. Rb3
{[%clk 0:00:55.8]} 29... Ne4 {[%clk 0:00:20.4]} 30. Nxe4 {[%clk 0:00:46.9]}
30... dxe4 {[%clk 0:00:20.3]} 31. a5 {[%clk 0:00:46]} 31... Qe7 {[%clk
0:00:12.8]} 32. c4 {[%clk 0:00:29.4]} 32... Qf6 {[%clk 0:00:12.4]} 33. d5 {[%clk
0:00:28.2]} 33... Ba8 {[%clk 0:00:09.4]} 34. Rb6 {[%clk 0:00:26.6]} 34... Rxc4
{[%clk 0:00:08.7]} 35. Rxf6 {[%clk 0:00:26]} 1-0

[Event "Betsys MČR v online bleskovém šachu 2021"]
[Site "Chess.com"]
[Date "2021.04.17"]
[Round "5"]
[White "Daffac"]
[Black "Sunnika"]
[Result "0-1"]
[WhiteElo "2096"]
[BlackElo "2326"]
[TimeControl "180+1"]
[EndTime "9:47:24 PDT"]
[Termination "Uživatel Sunnika zvítězil po vzdání soupeře"]

1. d4 {[%clk 0:03:00.9]} 1... Nf6 {[%clk 0:02:58.5]} 2. Nf3 {[%clk 0:02:59.8]}
2... g6 {[%clk 0:02:58.7]} 3. g3 {[%clk 0:02:58.6]} 3... Bg7 {[%clk 0:02:58.9]}
4. Bg2 {[%clk 0:02:59.5]} 4... O-O {[%clk 0:02:59.1]} 5. O-O {[%clk 0:03:00.4]}
5... d6 {[%clk 0:02:59.6]} 6. a4 {[%clk 0:03:00.3]} 6... Nc6 {[%clk 0:02:51]} 7.
d5 {[%clk 0:02:57.6]} 7... Nb4 {[%clk 0:02:45.9]} 8. Nc3 {[%clk 0:02:44.7]} 8...
c6 {[%clk 0:02:45.5]} 9. e4 {[%clk 0:02:40.6]} 9... Bg4 {[%clk 0:02:42.6]} 10.
h3 {[%clk 0:02:36.7]} 10... Bxf3 {[%clk 0:02:41.1]} 11. Bxf3 {[%clk 0:02:37.6]}
11... a5 {[%clk 0:02:26.3]} 12. Re1 {[%clk 0:02:34.1]} 12... Rc8 {[%clk
0:02:11.7]} 13. dxc6 {[%clk 0:02:19.9]} 13... bxc6 {[%clk 0:02:05.4]} 14. Ne2
{[%clk 0:02:18.9]} 14... Nd7 {[%clk 0:01:58.5]} 15. c3 {[%clk 0:02:16.5]} 15...
Ne5 {[%clk 0:01:56.9]} 16. Bg2 {[%clk 0:02:16.8]} 16... Nbd3 {[%clk 0:01:51.5]}
17. Rf1 {[%clk 0:02:17.3]} 17... Nxc1 {[%clk 0:01:41.6]} 18. Qxc1 {[%clk
0:02:13.2]} 18... Qb6 {[%clk 0:01:39]} 19. Nd4 {[%clk 0:02:10.2]} 19... Rb8
{[%clk 0:01:20.9]} 20. b3 {[%clk 0:02:07.7]} 20... Nd7 {[%clk 0:01:12.2]} 21.
Qd2 {[%clk 0:02:02]} 21... Bxd4 {[%clk 0:01:02.2]} 22. cxd4 {[%clk 0:02:02.9]}
22... Qb4 {[%clk 0:01:01.6]} 23. Rfd1 {[%clk 0:01:52.7]} 23... Qxd2 {[%clk
0:01:00.1]} 24. Rxd2 {[%clk 0:01:53.6]} 24... Rxb3 {[%clk 0:00:59.9]} 25. Rc2
{[%clk 0:01:51.7]} 25... c5 {[%clk 0:00:59.6]} 26. dxc5 {[%clk 0:01:44]} 26...
Nxc5 {[%clk 0:01:00.5]} 27. e5 {[%clk 0:01:43.8]} 27... Rfb8 {[%clk 0:00:58.2]}
28. exd6 {[%clk 0:01:40.2]} 28... exd6 {[%clk 0:00:59.1]} 29. Bc6 {[%clk
0:01:34.9]} 29... Rb1+ {[%clk 0:00:58.5]} 30. Rxb1 {[%clk 0:01:35]} 30... Rxb1+
{[%clk 0:00:58.9]} 31. Kg2 {[%clk 0:01:35.7]} 31... Kf8 {[%clk 0:00:55.1]} 32.
Re2 {[%clk 0:01:34.4]} 32... Ne6 {[%clk 0:00:37.7]} 33. f4 {[%clk 0:01:31]}
33... Rb4 {[%clk 0:00:32.2]} 34. Bd5 {[%clk 0:01:27.7]} 34... Ke7 {[%clk
0:00:28.3]} 35. Bc6 {[%clk 0:01:28.1]} 35... Kf6 {[%clk 0:00:25.7]} 36. Bd7
{[%clk 0:01:26.3]} 36... d5 {[%clk 0:00:22.7]} 37. Rd2 {[%clk 0:01:22.1]} 37...
d4 {[%clk 0:00:20.5]} 38. Kf3 {[%clk 0:01:22.1]} 38... Nc5 {[%clk 0:00:19.8]}
39. Bb5 {[%clk 0:01:21]} 39... Rb3+ {[%clk 0:00:19.4]} 40. Kg4 {[%clk
0:01:21.1]} 40... h5+ {[%clk 0:00:18.4]} 41. Kh4 {[%clk 0:01:21.3]} 41... d3
{[%clk 0:00:16.1]} 42. g4 {[%clk 0:01:16.9]} 42... hxg4 {[%clk 0:00:16]} 43.
hxg4 {[%clk 0:01:17.8]} 43... Rc3 {[%clk 0:00:14.6]} 44. g5+ {[%clk 0:01:11.6]}
44... Kf5 {[%clk 0:00:14.6]} 45. Kg3 {[%clk 0:01:08.9]} 45... Ke4 {[%clk
0:00:11.7]} 46. Kf2 {[%clk 0:00:58.1]} 46... Rc2 {[%clk 0:00:11.7]} 47. Ke1
{[%clk 0:00:54.8]} 47... Ke3 {[%clk 0:00:10.8]} 0-1

[Event "Betsys MČR v online bleskovém šachu 2021"]
[Site "Chess.com"]
[Date "2021.04.17"]
[Round "5"]
[White "MichalTrhal"]
[Black "FrantisekP"]
[Result "1-0"]
[WhiteElo "1926"]
[BlackElo "1626"]
[TimeControl "180+1"]
[EndTime "9:47:24 PDT"]
[Termination "Uživatel MichalTrhal zvítězil na čas"]

1. c4 {[%clk 0:02:59.8]} 1... c5 {[%clk 0:02:59.2]} 2. Nf3 {[%clk 0:02:59]} 2...
Nc6 {[%clk 0:02:59.8]} 3. g3 {[%clk 0:02:58.8]} 3... g6 {[%clk 0:02:59.9]} 4. d4
{[%clk 0:02:56.8]} 4... Bg7 {[%clk 0:03:00.6]} 5. d5 {[%clk 0:02:56.5]} 5... Ne5
{[%clk 0:02:56.7]} 6. e4 {[%clk 0:02:45]} 6... d6 {[%clk 0:02:51.5]} 7. Nxe5
{[%clk 0:02:43.4]} 7... Bxe5 {[%clk 0:02:49.4]} 8. Nc3 {[%clk 0:02:43.1]} 8...
Bg7 {[%clk 0:02:38.7]} 9. Bg5 {[%clk 0:02:34.9]} 9... h6 {[%clk 0:02:37.3]} 10.
Bf4 {[%clk 0:02:34.1]} 10... Nf6 {[%clk 0:02:28]} 11. Qd2 {[%clk 0:02:33.9]}
11... Bd7 {[%clk 0:02:17.6]} 12. Bg2 {[%clk 0:02:32.4]} 12... Nh5 {[%clk
0:02:15.5]} 13. Be3 {[%clk 0:02:31.5]} 13... a6 {[%clk 0:02:07.5]} 14. O-O
{[%clk 0:02:30.8]} 14... b5 {[%clk 0:02:02.3]} 15. cxb5 {[%clk 0:02:11.2]} 15...
axb5 {[%clk 0:02:03.2]} 16. a4 {[%clk 0:02:11.5]} 16... b4 {[%clk 0:01:57.6]}
17. Nb5 {[%clk 0:02:11.4]} 17... Qb6 {[%clk 0:01:37]} 18. f4 {[%clk 0:01:58.7]}
18... Bxb5 {[%clk 0:01:08.9]} 19. axb5 {[%clk 0:01:56.4]} 19... O-O {[%clk
0:01:08.9]} 20. Qe2 {[%clk 0:01:34.1]} 20... Kh7 {[%clk 0:01:02.3]} 21. Ra6
{[%clk 0:01:24.7]} 21... Rxa6 {[%clk 0:00:51.9]} 22. bxa6 {[%clk 0:01:24.7]}
22... Ra8 {[%clk 0:00:52.5]} 23. Ra1 {[%clk 0:01:23.7]} 23... Nf6 {[%clk
0:00:47.8]} 24. e5 {[%clk 0:01:12]} 24... dxe5 {[%clk 0:00:33.5]} 25. fxe5
{[%clk 0:01:11.7]} 25... Nd7 {[%clk 0:00:33]} 26. e6 {[%clk 0:01:00.7]} 26...
fxe6 {[%clk 0:00:29.9]} 27. dxe6 {[%clk 0:01:00.6]} 27... Qxe6 {[%clk
0:00:27.6]} 28. Bxa8 {[%clk 0:00:56.1]} 28... Qb3 {[%clk 0:00:17.9]} 29. Bc6
{[%clk 0:00:47.1]} 29... Ne5 {[%clk 0:00:14.3]} 30. a7 {[%clk 0:00:44.9]} 30...
Nxc6 {[%clk 0:00:11.9]} 31. a8=Q {[%clk 0:00:44]} 31... Bxb2 {[%clk 0:00:10.3]}
32. Rb1 {[%clk 0:00:42.3]} 32... Nd4 {[%clk 0:00:08.7]} 33. Bxd4 {[%clk
0:00:35]} 33... Bxd4+ {[%clk 0:00:06.5]} 34. Kh1 {[%clk 0:00:34.6]} 34... Qxb1+
{[%clk 0:00:06.5]} 35. Kg2 {[%clk 0:00:33.3]} 35... Qg1+ {[%clk 0:00:03.1]} 36.
Kh3 {[%clk 0:00:31]} 36... Bf6 {[%clk 0:00:01]} 37. Qaf3 {[%clk 0:00:25.6]} 1-0

[Event "Betsys MČR v online bleskovém šachu 2021"]
[Site "Chess.com"]
[Date "2021.04.17"]
[Round "5"]
[White "pepca"]
[Black "sipos88"]
[Result "1/2-1/2"]
[WhiteElo "1530"]
[BlackElo "1858"]
[TimeControl "180+1"]
[EndTime "9:47:24 PDT"]
[Termination "Remíza dohodou"]

1. e4 {[%clk 0:03:00.9]} 1... e5 {[%clk 0:02:56.7]} 2. Nf3 {[%clk 0:03:00.8]}
2... Nc6 {[%clk 0:02:56.7]} 3. d4 {[%clk 0:02:56.6]} 3... exd4 {[%clk
0:02:54.1]} 4. Nxd4 {[%clk 0:02:56.3]} 4... Nxd4 {[%clk 0:02:54.4]} 5. Qxd4
{[%clk 0:02:55.8]} 5... Qf6 {[%clk 0:02:55]} 6. e5 {[%clk 0:02:55.1]} 6... Qc6
{[%clk 0:02:54.7]} 7. Nc3 {[%clk 0:02:51.2]} 7... Bc5 {[%clk 0:02:53.7]} 8. Qf4
{[%clk 0:02:46.1]} 8... Ne7 {[%clk 0:02:48]} 9. Bc4 {[%clk 0:02:38.8]} 9... O-O
{[%clk 0:02:42.5]} 10. O-O {[%clk 0:02:35.3]} 10... Ng6 {[%clk 0:02:38.9]} 11.
Qg3 {[%clk 0:02:27.3]} 11... Bxf2+ {[%clk 0:02:36.8]} 12. Qxf2 {[%clk
0:02:16.1]} 12... Qxc4 {[%clk 0:02:36.2]} 13. Bf4 {[%clk 0:02:06.1]} 13... Nxf4
{[%clk 0:02:30.3]} 14. Qxf4 {[%clk 0:02:05.5]} 14... Qxf4 {[%clk 0:02:30.3]} 15.
Rxf4 {[%clk 0:02:05.1]} 15... d6 {[%clk 0:02:28.5]} 16. exd6 {[%clk 0:02:02.4]}
16... cxd6 {[%clk 0:02:28.3]} 17. Rd1 {[%clk 0:02:01.4]} 17... Rd8 {[%clk
0:02:19.3]} 18. Rfd4 {[%clk 0:02:01]} 18... Bf5 {[%clk 0:02:18.8]} 19. Rxd6
{[%clk 0:01:54.6]} 19... Rxd6 {[%clk 0:02:17.7]} 20. Rxd6 {[%clk 0:01:52.5]}
20... Bxc2 {[%clk 0:02:17.6]} 21. Rd7 {[%clk 0:01:51.9]} 21... b6 {[%clk
0:02:12.9]} 22. Nb5 {[%clk 0:01:51]} 22... a5 {[%clk 0:01:43.3]} 23. Nd6 {[%clk
0:01:41]} 23... f6 {[%clk 0:01:27.5]} 24. Rb7 {[%clk 0:01:39.5]} 24... Rd8
{[%clk 0:01:23.5]} 25. Rxb6 {[%clk 0:01:33.3]} 25... g5 {[%clk 0:01:19.9]} 26.
Nb7 {[%clk 0:01:30.7]} 26... Rd2 {[%clk 0:01:16.1]} 27. Nxa5 {[%clk 0:01:20.6]}
27... f5 {[%clk 0:01:11.7]} 28. Rb8+ {[%clk 0:01:12.8]} 28... Kg7 {[%clk
0:01:11.5]} 29. b4 {[%clk 0:01:10.4]} 29... Be4 {[%clk 0:01:10.7]} 30. b5 {[%clk
0:00:59.3]} 30... Rxg2+ {[%clk 0:01:10.5]} 31. Kf1 {[%clk 0:00:58]} 31... Rxa2
{[%clk 0:01:10.3]} 32. Nc6 {[%clk 0:00:51.7]} 32... Bxc6 {[%clk 0:01:07.6]} 33.
bxc6 {[%clk 0:00:51.5]} 33... Rc2 {[%clk 0:01:07.7]} 34. Rc8 {[%clk 0:00:40.2]}
34... Kg6 {[%clk 0:01:06.7]} 35. c7 {[%clk 0:00:39.5]} 35... Kh5 {[%clk
0:01:07]} 36. Ke1 {[%clk 0:00:38.9]} 36... Kg4 {[%clk 0:01:05.3]} 37. Kd1 {[%clk
0:00:39]} 37... Rc6 {[%clk 0:01:05.3]} 38. Ke2 {[%clk 0:00:36.5]} 38... f4
{[%clk 0:01:04.8]} 39. Kd3 {[%clk 0:00:34.1]} 39... Kf3 {[%clk 0:01:00.1]} 40.
Kd4 {[%clk 0:00:33.2]} 40... g4 {[%clk 0:00:59.7]} 41. Kd5 {[%clk 0:00:32.4]}
41... Rc1 {[%clk 0:00:59.2]} 42. Kd6 {[%clk 0:00:32.2]} 42... h5 {[%clk
0:00:59.1]} 43. Rh8 {[%clk 0:00:27.6]} 43... g3 {[%clk 0:00:56.8]} 44. hxg3
{[%clk 0:00:21.9]} 44... fxg3 {[%clk 0:00:54.5]} 45. Rxh5 {[%clk 0:00:20.4]}
45... g2 {[%clk 0:00:50.3]} 46. Rg5 {[%clk 0:00:20.3]} 46... Kf2 {[%clk
0:00:46.5]} 47. Rxg2+ {[%clk 0:00:19.5]} 47... Kxg2 {[%clk 0:00:46.6]} 48. Kd7
{[%clk 0:00:19.6]} 48... Rd1+ {[%clk 0:00:46.9]} 49. Kc8 {[%clk 0:00:19.6]}
49... Kf3 {[%clk 0:00:46.1]} 50. Kb7 {[%clk 0:00:19.5]} 50... Rb1+ {[%clk
0:00:46.4]} 51. Ka8 {[%clk 0:00:19.1]} 51... Ra1+ {[%clk 0:00:46.5]} 52. Kb7
{[%clk 0:00:18.8]} 52... Rb1+ {[%clk 0:00:46.9]} 53. Ka8 {[%clk 0:00:18.9]}
53... Ke4 {[%clk 0:00:46]} 1/2-1/2

[Event "Betsys MČR v online bleskovém šachu 2021"]
[Site "Chess.com"]
[Date "2021.04.17"]
[Round "5"]
[White "pedroholly22"]
[Black "MartinHollan"]
[Result "0-1"]
[WhiteElo "2395"]
[BlackElo "2593"]
[TimeControl "180+1"]
[EndTime "9:47:25 PDT"]
[Termination "Uživatel MartinHollan zvítězil po vzdání soupeře"]

1. Nf3 {[%clk 0:03:00.9]} 1... d5 {[%clk 0:02:59.5]} 2. d4 {[%clk 0:03:00]} 2...
Nf6 {[%clk 0:02:59.2]} 3. c4 {[%clk 0:02:53.4]} 3... e6 {[%clk 0:02:59.2]} 4.
Nc3 {[%clk 0:02:49]} 4... dxc4 {[%clk 0:02:58.9]} 5. e3 {[%clk 0:02:44.7]} 5...
a6 {[%clk 0:02:57.7]} 6. Bxc4 {[%clk 0:02:41.8]} 6... b5 {[%clk 0:02:57.7]} 7.
Bd3 {[%clk 0:02:41.9]} 7... Bb7 {[%clk 0:02:57.6]} 8. O-O {[%clk 0:02:41.4]}
8... Nbd7 {[%clk 0:02:57.4]} 9. b3 {[%clk 0:02:13.3]} 9... c5 {[%clk 0:02:55.4]}
10. Bb2 {[%clk 0:02:11.5]} 10... Bd6 {[%clk 0:02:45.8]} 11. Rc1 {[%clk
0:01:55.3]} 11... Qb8 {[%clk 0:02:42.2]} 12. h3 {[%clk 0:01:44.4]} 12... O-O
{[%clk 0:02:39.4]} 13. Be2 {[%clk 0:01:27.7]} 13... Rd8 {[%clk 0:02:34.4]} 14.
Qc2 {[%clk 0:01:06]} 14... cxd4 {[%clk 0:02:05.5]} 15. exd4 {[%clk 0:01:03.7]}
15... Bf4 {[%clk 0:01:58.7]} 16. Rb1 {[%clk 0:00:56.9]} 16... Rc8 {[%clk
0:01:57.7]} 17. Qd1 {[%clk 0:00:51.6]} 17... b4 {[%clk 0:01:52.4]} 18. Na4
{[%clk 0:00:50.6]} 18... Ne4 {[%clk 0:01:44.6]} 19. Qd3 {[%clk 0:00:34.5]} 19...
a5 {[%clk 0:01:32.8]} 20. Qb5 {[%clk 0:00:32.8]} 20... Qc7 {[%clk 0:01:25.4]}
21. Qh5 {[%clk 0:00:28.8]} 21... Ndf6 {[%clk 0:01:22.2]} 22. Qh4 {[%clk
0:00:27.4]} 22... g5 {[%clk 0:01:05.3]} 23. Qh6 {[%clk 0:00:25.9]} 23... g4
{[%clk 0:01:05.5]} 24. Qh4 {[%clk 0:00:21.3]} 24... gxf3 {[%clk 0:01:04.4]} 25.
Rbc1 {[%clk 0:00:15.4]} 25... Bxc1 {[%clk 0:00:59.1]} 26. Rxc1 {[%clk
0:00:14.1]} 26... fxe2 {[%clk 0:00:58.4]} 27. Re1 {[%clk 0:00:10.9]} 27... Qc6
{[%clk 0:00:50.6]} 28. d5 {[%clk 0:00:10.5]} 28... Qxd5 {[%clk 0:00:48.3]} 29.
Rxe2 {[%clk 0:00:09.1]} 29... Qg5 {[%clk 0:00:45.5]} 30. Qxg5+ {[%clk
0:00:07.9]} 30... Nxg5 {[%clk 0:00:45.3]} 31. Bxf6 {[%clk 0:00:08.4]} 31... Ne4
{[%clk 0:00:45.4]} 32. Be5 {[%clk 0:00:08.2]} 32... f6 {[%clk 0:00:44.9]} 33.
Bf4 {[%clk 0:00:07.4]} 33... Bc6 {[%clk 0:00:45]} 34. Nb6 {[%clk 0:00:07]} 34...
Kf7 {[%clk 0:00:38.8]} 35. Nxa8 {[%clk 0:00:06.7]} 35... Rxa8 {[%clk 0:00:38.6]}
36. Rc2 {[%clk 0:00:06.7]} 36... Nc3 {[%clk 0:00:38.1]} 37. Bd2 {[%clk 0:00:06]}
37... Be4 {[%clk 0:00:38.4]} 38. Rc1 {[%clk 0:00:05.3]} 38... Ne2+ {[%clk
0:00:38.1]} 39. Kh2 {[%clk 0:00:05.6]} 39... Nxc1 {[%clk 0:00:39]} 40. Bxc1
{[%clk 0:00:04.8]} 40... Bb1 {[%clk 0:00:39.2]} 0-1